{"text_format":"1","workbook":"xlsx","n_sheets":2,"sheets":["Лист1","Лист2"],"not_rendered":{"charts":0,"images":0,"macros":1,"external_links":0,"defined_names":0,"comments":0,"pivot_tables":0},"unopened":[],"bounds":{"document_bytes":16777216,"sheet_cells":100000,"rows_first":2000,"rows_last":500,"rows_between":2000,"halvings":0,"cell_chars":16384,"cell_head_chars":4096},"cells_cut":0,"cells_raw":0,"read":"whole","date_system":"1900"}

{"sheet":"Лист1","index":0,"n_rows":17,"n_cols":21,"rows_kept":17,"cut":false,"hidden":false,"merged":[]}
[]
[]
[]
[]
["Организация/имя","Телефон","Адрес","E-mail","Заметки","Фамилия1","Имя1","Отчество1","Телефон11","Телефон12","E-mail1","Должность1","Адрес1","Фамилия2","Имя2","Отчество2","Телефон21","Телефон22","E-mail2","Должность2","Адрес2"]
["OOO Dnestr","1245-1235",{"$f":"IF(OR(ТаблПаспорта[для сравнения]=Phonebook[[#This Row],[Организация/имя]]&\"|\"&Phonebook[[#This Row],[Телефон]]),\"Есть паспорт\",\"Нет паспорта\")","v":"Есть паспорт"},"Не аттестован",null,"фффффффффффффффф","Ivan","Ivanovich",268598733,13245754,"ivanov@mail.ru","direktor","ul. Jopa 12","Petrov","Petr","Petrovich",456578799,12354577,"petrovich@ya.com","programmist","bomj"]
["OAO Smile","9876-3321",{"$f":"IF(OR(ТаблПаспорта[для сравнения]=Phonebook[[#This Row],[Организация/имя]]&\"|\"&Phonebook[[#This Row],[Телефон]]),\"Есть паспорт\",\"Нет паспорта\")","v":"Есть паспорт"},null,"dfasdgwsdf","qweqwe","wrqer","wgwg","wsdfgsg","wgwrg","wgwg","wgwgw","wgwgw","wgwg","gwgw","rtrjnmn","hmtmzu","kiululi","opöipä","päoü#oü","tuktuk"]
["Telekom","12-3559-544",{"$f":"IF(OR(ТаблПаспорта[для сравнения]=Phonebook[[#This Row],[Организация/имя]]&\"|\"&Phonebook[[#This Row],[Телефон]]),\"Есть паспорт\",\"Нет паспорта\")","v":"Есть паспорт"},"Telekom@inbox.ru",null,"Poroshenko","hz","hz",380547899,38069877,"poroshenko@deneg.net","aligarh","ukraina","yaizeniuh","rabbit","rabbitovich",254147785,321524567,"pm@kiev.ru","podliza","kiev"]
["Bank Rossii","1447-5547",{"$f":"IF(OR(ТаблПаспорта[для сравнения]=Phonebook[[#This Row],[Организация/имя]]&\"|\"&Phonebook[[#This Row],[Телефон]]),\"Есть паспорт\",\"Нет паспорта\")","v":"Есть паспорт"},"BankRossii@portal.com",null,"ronaldo","luis","de pedro",22144777,1215478,"ronaldo@golov.net","futbolist","brasil","carlos","roberto","de hrenegoznaet",32154577,23545787,"r.carlos@brazil.br","zashitnik","brasil"]
["zzasddw","awdawdawd",{"$f":"IF(OR(ТаблПаспорта[для сравнения]=Phonebook[[#This Row],[Организация/имя]]&\"|\"&Phonebook[[#This Row],[Телефон]]),\"Есть паспорт\",\"Нет паспорта\")","v":"Есть паспорт"},"wdada","adawdada"]
[2323,232323,{"$f":"IF(OR(ТаблПаспорта[для сравнения]=Phonebook[[#This Row],[Организация/имя]]&\"|\"&Phonebook[[#This Row],[Телефон]]),\"Есть паспорт\",\"Нет паспорта\")","v":"Есть паспорт"},"Аттестован",23232]
["РОНА",55555,{"$f":"IF(OR(ТаблПаспорта[для сравнения]=Phonebook[[#This Row],[Организация/имя]]&\"|\"&Phonebook[[#This Row],[Телефон]]),\"Есть паспорт\",\"Нет паспорта\")","v":"Есть паспорт"},"Аттестован"]
["ИПМ","777-888-999",{"$f":"IF(OR(ТаблПаспорта[для сравнения]=Phonebook[[#This Row],[Организация/имя]]&\"|\"&Phonebook[[#This Row],[Телефон]]),\"Есть паспорт\",\"Нет паспорта\")","v":"Есть паспорт"},"Не аттестован"]
["OOO Dnestr",0,{"$f":"IF(OR(ТаблПаспорта[для сравнения]=Phonebook[[#This Row],[Организация/имя]]&\"|\"&Phonebook[[#This Row],[Телефон]]),\"Есть паспорт\",\"Нет паспорта\")","v":"Есть паспорт"},"Не аттестован",0,null,0,0,0,0,0,0,0,0,0]
["OOO Dnestr",123,{"$f":"IF(OR(ТаблПаспорта[для сравнения]=Phonebook[[#This Row],[Организация/имя]]&\"|\"&Phonebook[[#This Row],[Телефон]]),\"Есть паспорт\",\"Нет паспорта\")","v":"Есть паспорт"},"Не аттестован",123]
["OAO Smile",1111,{"$f":"IF(OR(ТаблПаспорта[для сравнения]=Phonebook[[#This Row],[Организация/имя]]&\"|\"&Phonebook[[#This Row],[Телефон]]),\"Есть паспорт\",\"Нет паспорта\")","v":"Есть паспорт"},"Аттестован"]
["OOO Dnestr","1245-123","Есть паспорт","Аттестован",null,"фффффффффффффффф","Ivan","Ivanovich",268598733,13245754,"ivanov@mail.ru","direktor","ul. Jopa 12","Petrov","Petr","Petrovich",456578799,12354577,"petrovich@ya.com","programmist","bomj"]

{"sheet":"Лист2","index":1,"n_rows":12,"n_cols":7,"rows_kept":12,"cut":false,"hidden":false,"merged":[]}
["Названия",null,"Статусы",null,"Организация/имя","Телефон","для сравнения"]
["OOO Dnestr",null,"Аттестован",null,"OOO Dnestr","1245-1235",{"$f":"ТаблПаспорта[[#This Row],[Организация/имя]]&\"|\"&ТаблПаспорта[[#This Row],[Телефон]]","v":"OOO Dnestr|1245-1235"}]
["OAO Smile",null,"Не аттестован",null,"OAO Smile","9876-3321",{"$f":"ТаблПаспорта[[#This Row],[Организация/имя]]&\"|\"&ТаблПаспорта[[#This Row],[Телефон]]","v":"OAO Smile|9876-3321"}]
["Telekom",null,null,null,"Telekom","12-3559-544",{"$f":"ТаблПаспорта[[#This Row],[Организация/имя]]&\"|\"&ТаблПаспорта[[#This Row],[Телефон]]","v":"Telekom|12-3559-544"}]
["Bank Rossii",null,null,null,"Bank Rossii","1447-5547",{"$f":"ТаблПаспорта[[#This Row],[Организация/имя]]&\"|\"&ТаблПаспорта[[#This Row],[Телефон]]","v":"Bank Rossii|1447-5547"}]
["zzasddw",null,null,null,"zzasddw","awdawdawd",{"$f":"ТаблПаспорта[[#This Row],[Организация/имя]]&\"|\"&ТаблПаспорта[[#This Row],[Телефон]]","v":"zzasddw|awdawdawd"}]
[2323,null,null,null,2323,232323,{"$f":"ТаблПаспорта[[#This Row],[Организация/имя]]&\"|\"&ТаблПаспорта[[#This Row],[Телефон]]","v":"2323|232323"}]
["РОНА",null,null,null,"РОНА",55555,{"$f":"ТаблПаспорта[[#This Row],[Организация/имя]]&\"|\"&ТаблПаспорта[[#This Row],[Телефон]]","v":"РОНА|55555"}]
["ИПМ",null,null,null,"ИПМ","777-888-999",{"$f":"ТаблПаспорта[[#This Row],[Организация/имя]]&\"|\"&ТаблПаспорта[[#This Row],[Телефон]]","v":"ИПМ|777-888-999"}]
[null,null,null,null,"OOO Dnestr",0,{"$f":"ТаблПаспорта[[#This Row],[Организация/имя]]&\"|\"&ТаблПаспорта[[#This Row],[Телефон]]","v":"OOO Dnestr|0"}]
[null,null,null,null,"OOO Dnestr",123,{"$f":"ТаблПаспорта[[#This Row],[Организация/имя]]&\"|\"&ТаблПаспорта[[#This Row],[Телефон]]","v":"OOO Dnestr|123"}]
[null,null,null,null,"OAO Smile",1111,{"$f":"ТаблПаспорта[[#This Row],[Организация/имя]]&\"|\"&ТаблПаспорта[[#This Row],[Телефон]]","v":"OAO Smile|1111"}]